Cogmind - Beta 16.1 @@@ ROGUE MODE // 2026.02.11 @ 14:37:51 Player: Database567 Result: Destroyed by X-67 Chaingunner with Heavy Machine Gun Performance ------------- Evolutions (4) 2000 Regions Visited (10) 2000 Robots Destroyed (158) 790 Value Destroyed (5256) 5256 Prototype IDs (9) 180 Alien Tech Used (0) 0 Bonus (0) 0 TOTAL SCORE: 10226 Bonus ------- None Cogmind --------- Core Integrity 0/850 Matter 147/300 Energy 100/100 System Corruption 5% Temperature Cool (0) Movement Treading (160) Location -6/Hub_04(d) Parts ------- > --- POWER (1) -------- (None) > --- PROPULSION (4) --- Centrium Heavy Treads Centrium Heavy Treads > --- UTILITY (8) ------ Advanced Heat Sink Visual Processing Unit Advanced Targeting Computer Centrium Medium Armor Plating Improved Hacking Suite Improved Hacking Suite > --- WEAPON (2) ------- KE Penetrator > --- INVENTORY (5) ---- Cold Fusion Reactor Quantum Reactor Centrium Heavy Treads Peak State ------------ > --- POWER ------------ Quantum Reactor > --- PROPULSION ------- Centrium Heavy Treads Centrium Heavy Treads > --- UTILITY ---------- Advanced Heat Sink Advanced Heat Sink Visual Processing Unit Advanced Targeting Computer Centrium Medium Armor Plating Improved Hacking Suite Improved Hacking Suite Improved System Shield > --- WEAPON ----------- Advanced KE Penetrator Advanced KE Penetrator > --- INVENTORY -------- Cold Fusion Reactor Quantum Reactor Centrium Heavy Treads KE Penetrator [Rating: 103] Favorites ----------- Power Cold Fusion Reactor Engine Improved Ion Engine Power Core Light Nuclear Core Reactor Cold Fusion Reactor Propulsion Aluminum Leg Treads Centrium Heavy Treads Leg Aluminum Leg Wheel Compact Wheel Utility Advanced Targeting Computer Device Advanced Heat Sink Storage Small Storage Unit Processor Advanced Targeting Computer Hackware Hacking Suite Protection Improved Medium Armor Plating Weapon Gauss Rifle Energy Gun Precision Beam Rifle Energy Cannon Heavy Plasma Cannon Ballistic Gun Gauss Rifle Ballistic Cannon Improved Light Cannon Launcher Scatter Rocket Array Build | -11 -10 -9 -9 -8 -7 -6 -6 -6 -6 -6 ------- Run | Yrd Mat Mat Min Mat Fac Fac Ext Cet Arc Hub Slots Evolved 8 | . . 2 . 2 2 2 . . . . Power . | . . . . . . . . . . . Propulsion 2 | . . 2 . . . . . . . . Utility 6 | . . . . 2 2 2 . . . . Weapon . | . . . . . . . . . . . Parts Attached 96 | 7 4 6 3 21 17 11 13 10 3 1 Power 10 | 2 1 1 . 1 2 1 1 1 . . Engine 6 | 2 . 1 . 1 2 . . . . . Core 1 | . 1 . . . . . . . . . Reactor 3 | . . . . . . 1 1 1 . . Propulsion 23 | 2 . 4 2 4 4 2 3 2 . . Treads 2 | . . . . . . . . 2 . . Leg 19 | 2 . 4 2 4 4 2 1 . . . Wheel 2 | . . . . . . . 2 . . . Hover . | . . . . . . . . . . . Flight . | . . . . . . . . . . . Utility 39 | 1 1 . . 12 8 4 6 4 3 . Device 10 | . . . . 1 . 3 4 2 . . Storage 2 | 1 . . . 1 . . . . . . Processor 6 | . 1 . . 1 2 . 1 1 . . Hackware 6 | . . . . 1 1 . 1 . 3 . Protection 15 | . . . . 8 5 1 . 1 . . Artifact . | . . . . . . . . . . . Weapon 24 | 2 2 1 1 4 3 4 3 3 . 1 Energy Gun 5 | 1 . . . 2 1 . . 1 . . Energy Cannon 2 | . . . . . . 1 1 . . . Ballistic Gun 9 | 1 . . . 2 2 . 1 2 . 1 Ballistic Cannon 5 | . 2 1 1 . . 1 . . . . Launcher 3 | . . . . . . 2 1 . . . Special Weapon . | . . . . . . . . . . . Impact Weapon . | . . . . . . . . . . . Slashing Weapon . | . . . . . . . . . . . Piercing Weapon . | . . . . . . . . . . . Special Melee Weapon . | . . . . . . . . . . . Unidentified Prototypes 9 | . . . . 1 . 4 . 4 . . Parts Lost 38 | . . 1 . 2 6 . 13 11 . 5 Power 4 | . . 1 . . . . 1 1 . 1 Propulsion 10 | . . . . 1 2 . 5 2 . . Utility 15 | . . . . 1 2 . 5 5 . 2 Weapon 9 | . . . . . 2 . 2 3 . 2 Highest Loss Streak 11 | . . 1 . 2 3 . 9 11 . 5 To Critical Strikes 1 | . . . . . 1 . . . . . Average Backups 6 | 1 6 7 8 7 7 7 4 4 4 3 Power 2 | . 1 2 2 1 2 3 2 2 2 2 Propulsion 1 | . 3 2 2 1 1 . . . 1 1 Utility 1 | . . 1 2 1 2 1 1 . . . Weapon 1 | . 1 2 2 2 1 2 1 . 1 . Tool/Special . | . . . . . . . . . . . Unused Backups 26 | . 2 5 . 5 5 2 1 2 1 3 Power 9 | . . 1 . 1 2 1 . 2 . 2 Propulsion 6 | . . 2 . 2 1 . . . . 1 Utility 2 | . . . . . 1 . 1 . . . Weapon 9 | . 2 2 . 2 1 1 . . 1 . Tool/Special . | . . . . . . . . . . . Average Slot Usage (%) 90 | . 90 99 100 97 98 99 59 68 81 84 Engine 4 | . 13 5 11 8 7 1 . . . . Reactor 2 | . . . . . . 4 5 5 6 5 Treads 2 | . . . . . . . . 9 13 13 Leg 24 | . 28 43 44 34 28 26 7 . . . Device 5 | . . . . 7 . 5 6 11 13 12 Storage 6 | . 14 11 11 9 7 6 1 . . . Processor 11 | . 5 11 11 1 16 20 13 11 13 13 Hackware 5 | . . . . 1 5 6 6 13 14 19 Protection 8 | . . . . 15 14 12 3 3 6 6 Energy Gun 1 | . 7 . . 5 . . . . . . Ballistic Gun 7 | . 7 . . 2 14 5 3 9 13 13 Ballistic Cannon 5 | . 12 22 22 10 . . . . . . Launcher 1 | . . . . . . 5 5 . . . Peak Build Rating 103 | 6 13 17 20 30 40 65 61 95 103 103 Average Rating 43 | 4 8 15 19 25 37 58 36 74 96 101 On Entrance 39 | . 6 13 16 20 30 39 61 48 95 103 Avg Prop Armor Cover (%) 3 | . . . . . . . 3 2 . . Naked Turns . | . . . . . . . . . . . Heaviest Build 54 | 12 18 20 20 35 42 54 46 41 41 41 Greatest Support 160 | 20 20 46 56 56 55 70 70 160 160 160 Greatest Overweight (x) 8 | 2 . . . . 1 . 7 8 . . Average Overweight (x) . | . . . . . . . 1 . . . Largest Inventory Capacity 8 | 8 8 8 8 8 8 8 8 5 5 5 Average Capacity 7 | 7 8 8 8 7 8 8 5 5 5 5 Most Carried 8 | 4 8 8 8 8 8 8 8 5 5 5 Average Carried 6 | 2 6 7 7 7 7 7 4 4 4 4 Final Capacity 8 | 8 8 8 8 8 8 8 5 5 5 5 Final Carried 8 | 4 8 8 8 8 8 8 5 5 5 4 Class Distribution -------------------- 58% | Mutant 38% | Scavenger-Mutant Dominant Class ---------------- Mutant | -10/Materials Mutant | -9/Materials Mutant | -9/Mines Scavenger-Mutant | -8/Materials Scavenger-Mutant | -7/Factory Mutant | -6/Factory Mutant | -6/Extension Scavenger-Mutant | -6/Cetus Scavenger-Mutant | -6/Archives Scavenger-Mutant | -6/Hub_04(d) Resources | -11 -10 -9 -9 -8 -7 -6 -6 -6 -6 -6 ----------- Run | Yrd Mat Mat Min Mat Fac Fac Ext Cet Arc Hub Matter Collected 3819 | 226 110 559 86 628 689 512 550 157 209 93 Remotely . | . . . . . . . . . . . Salvage Created 5341 | . 180 721 110 601 833 836 1243 209 417 191 Parts 307 | . 16 44 9 34 49 45 60 15 20 15 Haulers Intercepted 6 | . . 3 . 1 . 2 . . . . Recyclers Shooed 6 | . . 1 . . . 1 3 . . 1 Parts Field Recycled . | . . . . . . . . . . . Retrieved Matter . | . . . . . . . . . . . Parts Self-Destructed . | . . . . . . . . . . . Prevented . | . . . . . . . . . . . Parts Restored . | . . . . . . . . . . . Kills | -11 -10 -9 -9 -8 -7 -6 -6 -6 -6 -6 ------- Run | Yrd Mat Mat Min Mat Fac Fac Ext Cet Arc Hub Combat Hostiles Destroyed 101 | . 8 18 5 17 14 12 16 4 4 3 Guns 38 | . 1 . . 7 14 5 2 2 4 3 Cannons 44 | . 7 18 5 9 . 3 . 2 . . AOE 19 | . . . . 1 . 4 14 . . . Classes Destroyed 18 | . 5 4 . 1 3 1 2 . . 2 Worker 11 | . 1 . . . 2 3 5 . . . Builder 8 | . . . . . . 3 5 . . . Tunneler 4 | . . . . . . . 4 . . . Hauler 6 | . . 3 . 1 . 2 . . . . Recycler 11 | . . 1 . . 1 1 8 . . . Mechanic 1 | . . . . 1 . . . . . . Operator 7 | . 1 1 . 1 . 1 . . 3 . Watcher 9 | . 1 . . 1 2 1 2 1 . 1 Swarmer 24 | . 5 4 3 4 1 3 4 . . . Grunt 39 | . 3 7 2 10 7 4 6 . . . Brawler 4 | . . 2 . 1 . . 1 . . . Duelist 1 | . . . . . 1 . . . . . Sentry 16 | . . 5 . 2 2 1 2 . 4 . Specialist 1 | . . . . . . . . . . 1 Hunter 4 | . . . . . 1 3 . . . . Programmer 5 | . . . . . 2 1 1 . . 1 Heavy 1 | . . . . . . . . . . 1 Behemoth 2 | . . . . . . . 2 . . . Cetus Guard 4 | . . . . . . . . 4 . . Best Kill Streak 12 | . 7 7 3 5 5 6 12 4 2 3 Combat Bots Only 8 | . 5 6 3 3 5 4 8 3 2 3 Max Kills in Single Turn 12 | . 2 1 1 3 1 6 12 1 1 1 Gunslinging . | . . . . . . . . . . . Exploded 8 | . . . . 1 . 2 8 . . . Melee . | . . . . . . . . . . . Uniques/NPCs Destroyed . | . . . . . . . . . . . Combat | -11 -10 -9 -9 -8 -7 -6 -6 -6 -6 -6 -------- Run | Yrd Mat Mat Min Mat Fac Fac Ext Cet Arc Hub Hostile Shots Fired 792 | . 37 59 5 65 135 143 118 63 25 142 Missed 276 | . 14 19 1 14 49 57 48 19 5 50 Hits 516 | . 23 40 4 51 86 86 70 44 20 92 Melee 10 | . . . . 4 6 . . . . . Projectile 506 | . 23 40 4 47 80 86 70 44 20 92 Critical Strikes 16 | . . 1 . 3 3 3 . 4 1 1 Damage Taken 7736 | . 217 454 40 733 1273 1007 1030 1213 470 1299 Core 1162 | . 37 84 9 70 111 66 210 411 46 118 Absorbed by Shields . | . . . . . . . . . . . Ignored by Resistances 22 | . . . . 22 . . . . . . Regen/Repaired (Parts) 59 | . . . . 59 . . . . . . Core Remaining (%) 86 | 100 85 . 76 87 84 . . . . . Volleys Fired 325 | . 25 46 7 47 64 42 35 14 30 15 Largest 2 | . 2 2 2 2 2 2 2 2 2 2 Hottest 122 | . 66 66 66 122 56 118 78 115 70 70 Shots Fired 571 | . 50 92 14 93 123 56 39 16 59 29 Gun 323 | . 10 . . 28 123 39 28 7 59 29 Cannon 230 | . 40 92 14 65 . 11 . 8 . . Launcher 18 | . . . . . . 6 11 1 . . Special . | . . . . . . . . . . . Kinetic 509 | . 45 92 14 73 123 39 28 7 59 29 Thermal 44 | . 5 . . 20 . 11 . 8 . . Explosive 18 | . . . . . . 6 11 1 . . Electromagnetic . | . . . . . . . . . . . Robot Hit Streak 23 | . 7 9 4 23 15 9 7 3 14 14 Robot Miss Streak 10 | . 5 4 1 2 3 10 10 5 4 3 Penetration Max 1 | . . . . 1 1 1 1 . 1 1 Secondary Targets 5 | . . . . 1 1 . . . . 3 Max Gunslinging Chain 1 | . . . . 1 1 . . . . 1 Shots Hit Robots 390 | . 27 55 8 68 89 43 31 10 37 22 Core Hits 367 | . 14 24 6 32 37 57 145 31 14 7 Critical Kills 9 | . . . . . 1 1 . 2 3 2 Critical Parts Destroyed 9 | . . . . . 1 1 1 . 5 1 Critical Strikes 29 | . 3 2 2 2 2 2 1 2 10 3 Destroy 20 | . . . . . 2 2 1 2 10 3 Blast 9 | . 3 2 2 2 . . . . . . Melee Attacks . | . . . . . . . . . . . Impact . | . . . . . . . . . . . Slashing . | . . . . . . . . . . . Piercing . | . . . . . . . . . . . Sneak Attacks . | . . . . . . . . . . . Combat Hostiles . | . . . . . . . . . . . Follow-up Attacks . | . . . . . . . . . . . Damage Inflicted 14231 | . 644 1244 170 1789 1766 2011 4337 593 1104 573 Guns 5287 | . 58 . . 330 1748 682 637 155 1104 573 Cannons 3545 | . 586 1241 170 1106 . 289 . 153 . . Explosions 5312 | . . . . 353 . 1013 3698 248 . . Melee . | . . . . . . . . . . . Ramming 87 | . . 3 . . 18 27 2 37 . . Kinetic 8162 | . 601 1241 170 1251 1748 682 637 155 1104 573 Thermal 670 | . 43 . . 185 . 289 . 153 . . Explosive 5312 | . . . . 353 . 1013 3698 248 . . Electromagnetic . | . . . . . . . . . . . Impact . | . . . . . . . . . . . Slashing . | . . . . . . . . . . . Piercing . | . . . . . . . . . . . Highest Corruption 5 | . . . . 4 3 . . 1 1 5 Average Corruption 2 | . . . . 4 2 . . 1 1 3 Corruption Purged . | . . . . . . . . . . . Corruption Blocked . | . . . . . . . . . . . Effects 50 | . . . . 24 14 . . 4 4 4 Message Errors 15 | . . . . 6 6 . . 1 . 2 Matter Fused 12 | . . . . 6 3 . . 1 1 1 Heat Flow Errors 6 | . . . . 4 . . . 1 1 . Energy Discharges 4 | . . . . 2 1 . . . 1 . Parts Rejected 1 | . . . . 1 . . . . . . Parts Fused 1 | . . . . 1 . . . . . . Data Loss (minor) 7 | . . . . 2 3 . . 1 . 1 Data Loss (major) 1 | . . . . 1 . . . . . . Weapon Failures 3 | . . . . 1 1 . . . 1 . Overload Shots . | . . . . . . . . . . . Overflow Damage 101 | . 10 . . 40 . 14 37 . . . Projectiles 24 | . 10 . . . . 14 . . . . Explosions 77 | . . . . 40 . . 37 . . . Melee . | . . . . . . . . . . . Knockbacks 18 | . 7 4 2 5 . . . . . . Impact . | . . . . . . . . . . . Kinetic 17 | . 6 4 2 5 . . . . . . Secondary 1 | . 1 . . . . . . . . . Self-Inflicted Damage 259 | . . . . 27 . 101 85 46 . . Shots 12 | . . . . 1 . 5 5 1 . . Rammed 15 | . . . . . . . 3 12 . . Targets Rammed 21 | . . 1 . . 1 4 3 12 . . Kicked 6 | . . 1 . . 1 4 . . . . Crushed . | . . . . . . . . . . . Highest Temperature 534 | . 60 58 9 534 83 393 5 70 203 . Average Temperature 58 | . 19 15 9 95 19 165 5 32 118 . Received Heat Transfer 1407 | . 54 153 9 306 249 156 204 36 81 159 Effects 3 | . . . . 2 . 1 . . . . Shutdowns 1 | . . . . 1 . . . . . . Energy Bleed 1 | . . . . . . 1 . . . . Matter Decay 1 | . . . . 1 . . . . . . Siege Activations . | . . . . . . . . . . . Martial Activations . | . . . . . . . . . . . Shielding Activations . | . . . . . . . . . . . Robots Disrupted . | . . . . . . . . . . . Combat Hostiles . | . . . . . . . . . . . Robots Corrupted . | . . . . . . . . . . . Combat Hostiles . | . . . . . . . . . . . Parts Fried . | . . . . . . . . . . . Impact Corruptions . | . . . . . . . . . . . Robots Melted . | . . . . . . . . . . . Combat Hostiles . | . . . . . . . . . . . Parts Melted 1 | . . . . . . 1 . . . . Heat Transferred 1142 | . 100 . . 407 . 450 . 185 . . Parts Sabotaged . | . . . . . . . . . . . Parts Stolen . | . . . . . . . . . . . Parts Stripped . | . . . . . . . . . . . Power Chain Reactions . | . . . . . . . . . . . Alert | -11 -10 -9 -9 -8 -7 -6 -6 -6 -6 -6 ------- Run | Yrd Mat Mat Min Mat Fac Fac Ext Cet Arc Hub Maximum Alert Level 1 | . . 1 . 1 . 1 1 . . . Low Security (%) 92 | 100 100 91 100 96 100 85 59 100 100 100 Level 1 7 | . . 8 . 3 . 14 40 . . . Level 2 . | . . . . . . . . . . . Level 3 . | . . . . . . . . . . . Level 4 . | . . . . . . . . . . . Level 5 . | . . . . . . . . . . . High Security . | . . . . . . . . . . . Max Security . | . . . . . . . . . . . Peak Influence 377 | . 170 365 196 212 134 236 377 183 61 62 Initial 179 | . . 67 140 52 79 49 110 179 . . Average 84 | . 46 98 159 114 51 77 194 63 20 6 Influence Increases 3601 | . 274 598 136 563 471 557 587 122 139 154 Destroy 0b10 Robot/C 2020 | . 160 360 100 340 280 240 320 80 80 60 Destroy 0b10 Robot/NC 285 | . 15 25 . 20 25 55 120 5 15 5 Destroy Leader 418 | . 32 96 20 64 74 66 44 . . 22 Allied During Kill 4 | . . . 1 3 . . . . . . Trap Triggered on 0b10 30 | . . 10 . . . . . . . 20 Successful Hack 66 | . 19 11 . 6 . 13 . 8 . 9 Disable Machine 225 | . . 30 . 60 30 60 . . 30 15 Destroy Structure 298 | . 3 6 . 25 2 108 103 29 14 8 Lose Combat Pursuer 255 | . 45 60 15 45 60 15 . . . 15 Influence Decreases 3569 | . 114 397 361 523 546 431 493 443 138 123 Entered New Map 807 | . . 93 221 84 97 52 117 142 . 1 Time Decay 2347 | . 114 294 120 397 405 379 246 191 138 63 Lost Part 354 | . . 10 . 10 44 . 130 110 . 50 Lost Ally 52 | . . . 20 32 . . . . . . Purge Threat 9 | . . . . . . . . . . 9 Squads Dispatched 20 | . 1 2 . 2 5 5 1 . . 4 Investigation 4 | . . 1 . 1 2 . . . . . Extermination 4 | . . . . . 2 1 . . . 1 Reinforcement 10 | . 1 1 . 1 1 2 1 . . 3 Assault . | . . . . . . . . . . . Garrison 2 | . . . . . . 2 . . . . Intercept . | . . . . . . . . . . . Searches Triggered . | . . . . . . . . . . . Construction Impeded 2 | . . . . . 1 . 1 . . . Haulers Reinforced 1 | . . . . . . 1 . . . . Active Scanning Responses . | . . . . . . . . . . . Cargo Convoy Interrupts . | . . . . . . . . . . . Stealth | -11 -10 -9 -9 -8 -7 -6 -6 -6 -6 -6 --------- Run | Yrd Mat Mat Min Mat Fac Fac Ext Cet Arc Hub Distress Signals 14 | . 1 3 . 3 1 . 1 2 1 2 Communications Jammed . | . . . . . . . . . . . Distress Signals . | . . . . . . . . . . . Times Spotted 171 | . 18 27 5 24 20 18 20 7 20 12 Peak Tracking Total 10 | . 5 7 2 4 4 4 9 5 1 10 Tactical Retreats 12 | . 3 1 1 2 3 1 . . . 1 Traps | -11 -10 -9 -9 -8 -7 -6 -6 -6 -6 -6 ------- Run | Yrd Mat Mat Min Mat Fac Fac Ext Cet Arc Hub Traps Triggered 5 | . . . . . 2 1 . . . 2 Indirectly . | . . . . . . . . . . . Trap Hack Attempts . | . . . . . . . . . . . Triggered . | . . . . . . . . . . . Disarmed . | . . . . . . . . . . . Reprogrammed 9 | . 4 1 . . . . . . . 4 Reused 3 | . . 1 . . . . . . . 2 Traps Extracted . | . . . . . . . . . . . Installed . | . . . . . . . . . . . Triggered 3 | . . 1 . . . . . . . 2 Machines | -11 -10 -9 -9 -8 -7 -6 -6 -6 -6 -6 ---------- Run | Yrd Mat Mat Min Mat Fac Fac Ext Cet Arc Hub Machines Disabled 15 | . . 2 . 4 2 4 . . 2 1 Max in Single Turn 4 | . . 1 . 2 1 4 . . 1 1 Machines Repaired . | . . . . . . . . . . . Machines Dismantled . | . . . . . . . . . . . Machines Sabotaged . | . . . . . . . . . . . Overloaded Fab Kills . | . . . . . . . . . . . Hacking | -11 -10 -9 -9 -8 -7 -6 -6 -6 -6 -6 --------- Run | Yrd Mat Mat Min Mat Fac Fac Ext Cet Arc Hub Machines Accessed 25 | . 2 4 . 5 5 4 . 1 1 3 Terminals 16 | . 2 2 . 2 4 2 . 1 . 3 Fabricators 1 | . . . . . . 1 . . . . Repair Stations 3 | . . 1 . 2 . . . . . . Recycling Units . | . . . . . . . . . . . Scanalyzers 3 | . . 1 . 1 . 1 . . . . Garrison Access 1 | . . . . . 1 . . . . . Total Hacks 100 | . 12 15 . 13 13 9 . 2 25 11 Successful 67 | . 7 7 . 9 5 5 . 1 25 8 Failed 32 | . 5 8 . 3 8 4 . 1 . 3 Catastrophic . | . . . . . . . . . . . Database Lockouts 1 | . . . . 1 . . . . . . Manual 5 | . . . . . . 1 . 1 3 . Terminals 55 | . 12 9 . 5 11 5 . 2 . 11 Fabricators 2 | . . . . . . 2 . . . . Repair Stations 9 | . . 3 . 6 . . . . . . Recycling Units . | . . . . . . . . . . . Scanalyzers 7 | . . 3 . 2 . 2 . . . . Garrison Access 2 | . . . . . 2 . . . . . Terminal Hacks 56 | . 7 4 . 3 5 3 . 1 25 8 Record 36 | . 3 1 . . 2 2 . . 25 3 Open Door 1 | . . . . . . . . 1 . . Open DSF 1 | . . . . . . 1 . . . . Alert Level 5 | . . 1 . 1 2 . . . . 1 Unreport Threat 1 | . . . . . . . . . . 1 Locate Traps 1 | . . . . 1 . . . . . . Reprogram Traps 3 | . 1 1 . . . . . . . 1 Dispatch Records 1 | . . . . 1 . . . . . . Security Status 1 | . . . . . . . . . . 1 Investigation Status 2 | . 1 . . . 1 . . . . . Recall Investigation 1 | . 1 . . . . . . . . . Recall Reinforcements 1 | . . . . . . . . . . 1 Zone Layout 2 | . 1 1 . . . . . . . . Fabricator Hacks 1 | . . . . . . 1 . . . . Network Status 1 | . . . . . . 1 . . . . Repair Station Hacks 6 | . . 1 . 5 . . . . . . Scan Component 4 | . . 1 . 3 . . . . . . Repair 2 | . . . . 2 . . . . . . Recycling Unit Hacks . | . . . . . . . . . . . Scanalyzer 4 | . . 2 . 1 . 1 . . . . Retrieve Study 4 | . . 2 . 1 . 1 . . . . Garrison Access Hacks . | . . . . . . . . . . . Unauthorized Hacks . | . . . . . . . . . . . Terminals . | . . . . . . . . . . . Fabricators . | . . . . . . . . . . . Repair Stations . | . . . . . . . . . . . Recycling Units . | . . . . . . . . . . . Scanalyzers . | . . . . . . . . . . . Garrison Access . | . . . . . . . . . . . Data Cores Recovered 1 | . . . . 1 . . . . . . Used . | . . . . . . . . . . . Hacking Detections 20 | . 1 4 . 4 5 3 . . . 3 Full Trace Events 3 | . . . . 1 2 . . . . . Feedback Events 1 | . . . . . 1 . . . . . Corruption 1 | . . . . . 1 . . . . . Feedback Blocked . | . . . . . . . . . . . Robot Schematics Acquired . | . . . . . . . . . . . Robots Built . | . . . . . . . . . . . Authchips . | . . . . . . . . . . . Time . | . . . . . . . . . . . Total Robot Build Rating . | . . . . . . . . . . . Part Schematics Acquired . | . . . . . . . . . . . Parts Built . | . . . . . . . . . . . Authchips . | . . . . . . . . . . . Time . | . . . . . . . . . . . Total Part Build Rating . | . . . . . . . . . . . Part Studies Acquired 3 | . . 2 . . . 1 . . . . Parts Repaired 2 | . . . . 2 . . . . . . Time 82 | . . . . 82 . . . . . . Parts Recycled . | . . . . . . . . . . . Recycled Matter . | . . . . . . . . . . . Retrieved Matter . | . . . . . . . . . . . Retrieved Components . | . . . . . . . . . . . Parts Scanalyzed . | . . . . . . . . . . . Part Schematics Acquired . | . . . . . . . . . . . Parts Damaged . | . . . . . . . . . . . Bothacking | -11 -10 -9 -9 -8 -7 -6 -6 -6 -6 -6 ------------ Run | Yrd Mat Mat Min Mat Fac Fac Ext Cet Arc Hub Used RIF Installer . | . . . . . . . . . . . Robots Hacked . | . . . . . . . . . . . Non-combat . | . . . . . . . . . . . Combat . | . . . . . . . . . . . Robot Hacks Applied . | . . . . . . . . . . . Relay Couplers Released . | . . . . . . . . . . . Fabnet Peak Effective % . | . . . . . . . . . . . Robots Rewired . | . . . . . . . . . . . Allies Hacked . | . . . . . . . . . . . Hacks Repelled . | . . . . . . . . . . . Allies | -11 -10 -9 -9 -8 -7 -6 -6 -6 -6 -6 -------- Run | Yrd Mat Mat Min Mat Fac Fac Ext Cet Arc Hub Total Allies 3 | . . . 3 . . . . . . . Largest Group 2 | . . . 2 2 . . . . . . Highest-Rated Group 44 | . . . 44 44 . . . . . . Highest-Rated Ally 31 | . . . 31 31 . . . . . . Total Orders . | . . . . . . . . . . . Ally Attacks 7 | . . . 4 3 . . . . . . Total Damage 61 | . . . . 61 . . . . . . Kills . | . . . . . . . . . . . Allies Corrupted 1 | . . . . 1 . . . . . . Allies Melted . | . . . . . . . . . . . Intel | -11 -10 -9 -9 -8 -7 -6 -6 -6 -6 -6 ------- Run | Yrd Mat Mat Min Mat Fac Fac Ext Cet Arc Hub Active Infowar (turns) 1050 | . . . . . . . 1 416 353 280 Optics 1049 | . . . . . . . . 416 353 280 ECM 1 | . . . . . . . 1 . . . Robot Analysis Total . | . . . . . . . . . . . Derelict Logs Recovered . | . . . . . . . . . . . Drone Launches . | . . . . . . . . . . . Drone Recoveries . | . . . . . . . . . . . Exploration | -11 -10 -9 -9 -8 -7 -6 -6 -6 -6 -6 ------------- Run | Yrd Mat Mat Min Mat Fac Fac Ext Cet Arc Hub Turns Passed 6154 | 74 339 656 250 1073 1104 953 537 535 353 280 Spaces Moved 3671 | 51 198 415 193 626 698 639 285 288 146 132 Core 83 | 11 . . . . . . 38 34 . . Treads 516 | . . . . . . . . 238 146 132 Legs 2949 | 40 198 415 193 626 698 639 140 . . . Wheels 123 | . . . . . . . 107 16 . . Hover . | . . . . . . . . . . . Flight . | . . . . . . . . . . . Fastest Speed 50 | 50 120 112 112 112 116 122 100 50 160 160 Average Speed 126 | 111 120 113 112 115 119 122 144 156 160 160 Slowest Speed 450 | 150 120 120 112 116 190 122 400 450 160 160 Overloaded Moves . | . . . . . . . . . . . Propulsion Burnouts . | . . . . . . . . . . . Robots Hopped . | . . . . . . . . . . . Potential Cave-ins . | . . . . . . . . . . . Cave-ins Triggered . | . . . . . . . . . . . Exploration Rate (%) 38 | 4 30 39 55 37 19 14 43 79 89 18 Regions Visited 10 Branch Regions 5 Pre-discovered Areas . | . . . . . . . . . . . Known Exits Taken . | . . . . . . . . . . . Unknown Exits Taken 10 | 1 1 1 1 1 1 1 1 1 1 . Scrap Searched 1 | . . . 1 . . . . . . . Spaces Dug . | . . . . . . . . . . . Terrain Destroyed 486 | . 2 1 . 26 1 139 241 50 18 8 Melee . | . . . . . . . . . . . Projectile 32 | . 2 1 . . 1 3 . . 17 8 AOE 453 | . . . . 26 . 136 241 50 . . Terrain Rammed . | . . . . . . . . . . . Walls Destroyed . | . . . . . . . . . . . Machines Disabled . | . . . . . . . . . . . Actions | -11 -10 -9 -9 -8 -7 -6 -6 -6 -6 -6 --------- Run | Yrd Mat Mat Min Mat Fac Fac Ext Cet Arc Hub Total 4605 | 67 251 508 215 888 845 748 350 355 206 172 Wait 315 | . 13 26 7 139 39 29 . 14 24 24 Move 3661 | 50 197 414 192 625 697 638 284 287 145 132 Hop . | . . . . . . . . . . . Pick Up 105 | 10 8 9 2 28 14 10 10 12 2 . Fast Attach 6 | . 1 . . 1 . 1 2 . 1 . Attach 51 | 6 2 3 . 9 8 1 11 10 . 1 Detach 1 | . . . . . . . 1 . . . Swap 55 | 1 1 3 3 17 11 12 2 3 2 . Drop 65 | . 4 6 4 22 11 11 2 3 2 . Fire 325 | . 25 46 7 47 64 42 35 14 30 15 Melee . | . . . . . . . . . . . Ram 15 | . . . . . . . 3 12 . . Kick 6 | . . 1 . . 1 4 . . . . Crush . | . . . . . . . . . . . Escape Stasis . | . . . . . . . . . . . Rewire . | . . . . . . . . . . . Trap . | . . . . . . . . . . . Miscellaneous . | . . . . . . . . . . . Route ------- -11/Scrapyard -10/Materials (discovered 2 exits: *Mat / [*Min]) -9/Materials (discovered 2 exits: *Mat / [*Min]) -9/Mines (discovered 2 exits: *Mat / [*Zio]) -8/Materials -7/Factory -6/Factory -6/Extension (discovered 2 exits: [*Fac] / *Cet) -6/Cetus -6/Archives (discovered 3 exits: [*Fac] / *Hub x2) -6/Hub_04(d) History --------- Turn | Location | Event 8 | -11/Scrapyard | Discovered new exit (range 15) 75 | -11/Scrapyard | Entered Materials 209 | -10/Materials | Discovered new exit (range 8) 230 | -10/Materials | Discovered new exit (range 14) 315 | -10/Materials | Build established: Mutant 414 | -10/Materials | Entered another Materials area 414 | -9/Materials | Evolved 2 slots: Propulsion x2 821 | -9/Materials | Discovered new exit (range 16) 979 | -9/Materials | Discovered new exit (range 12) 1070 | -9/Materials | Entered Mines 1073 | -9/Mines | Received a Mining Laser from a helpful Derelict 1075 | -9/Mines | A Derelict revealed a hidden shortcut to a safe place 1157 | -9/Mines | Received a Rocket Launcher from a helpful Derelict 1304 | -9/Mines | Discovered new exit (range 11) 1320 | -9/Mines | Entered Materials 1320 | -8/Materials | Accompanied by 2 allies 1320 | -8/Materials | Evolved 2 slots: Utility x2 1325 | -8/Materials | Led the pair of lost Derelicts to an unsafe place 1557 | -8/Materials | Repaired Broken Imp. Ion Engine 1861 | -8/Materials | Build established: Scavenger-Mutant 2116 | -8/Materials | Repaired Lgt. Nuclear Core 2316 | -8/Materials | Discovered new exit (range 10) 2336 | -8/Materials | Central database locked down 2393 | -8/Materials | Entered Factory 2393 | -7/Factory | Evolved 2 slots: Utility x2 3173 | -7/Factory | Lost 3 parts (1n2u) 3453 | -7/Factory | Discovered new exit (range 11) 3461 | -7/Factory | Build established: Mutant 3497 | -7/Factory | Entered another Factory area 3497 | -6/Factory | Evolved 2 slots: Utility x2 3737 | -6/Factory | Found Prototype Launcher 3738 | -6/Factory | Identified Scatter Rocket Array 3741 | -6/Factory | Found Scatter Rocket Array 3747 | -6/Factory | Found Scatter Rocket Array 3830 | -6/Factory | Discovered new exit (range 13) 4300 | -6/Factory | Garrison activated, responded to threat 4310 | -6/Factory | Spotted B-75 Beast 4450 | -6/Factory | Entered Extension 4551 | -6/Extension | Spotted B-75 Beast 4565 | -6/Extension | Destroyed B-75 Beast 4613 | -6/Extension | Spotted B-75 Beast 4632 | -6/Extension | Destroyed B-75 Beast 4645 | -6/Extension | Lost 9 parts (3n5u1w) 4700 | -6/Extension | Disrupted transfer network 4793 | -6/Extension | Destroyed 8 combat bots 4915 | -6/Extension | Discovered new exit (range 16) 4916 | -6/Extension | Discovered new exit (range 15) 4987 | -6/Extension | Entered Cetus 5003 | -6/Cetus | Spotted Cetus Guard 5004 | -6/Cetus | Spotted Cetus Guard 5009 | -6/Cetus | Spotted Cetus Guard 5021 | -6/Cetus | Destroyed Cetus Guard 5028 | -6/Cetus | Destroyed Cetus Guard 5036 | -6/Cetus | Destroyed Cetus Guard 5042 | -6/Cetus | Core integrity fell below 50% 5074 | -6/Cetus | Lost 11 parts (1p2n5u3w) 5086 | -6/Cetus | Destroyed Cetus Guard 5386 | -6/Cetus | Build established: Scavenger-Mutant 5457 | -6/Cetus | Discovered new exit (range 17) 5490 | -6/Cetus | Spotted Cetus Guard 5490 | -6/Cetus | Spotted Cetus Guard 5493 | -6/Cetus | Spotted Cetus Guard 5495 | -6/Cetus | Core integrity fell below 20% 5522 | -6/Cetus | Entered Archives 5661 | -6/Archives | Discovered new exit (range 18) 5666 | -6/Archives | Unable to access archive contents 5684 | -6/Archives | Unable to access archive contents 5690 | -6/Archives | Discovered new exit (range 16) 5703 | -6/Archives | Unable to access archive contents 5711 | -6/Archives | Discovered new exit (range 15) 5724 | -6/Archives | Unable to access archive contents 5875 | -6/Archives | Entered Hub_04(d) 6155 | -6/Hub_04(d) | Destroyed by X-67 Chaingunner with Heavy Machine Gun Last Messages --------------- Adv. KE Penetrator destroyed. 9S4SHP1/&Y >3CPR#IA|KJ9R49=R|Q%S Adv. Heat Sink destroyed. Slug penetrates X-67 Chaingunner. X-67 Chaingunner suffers critical hit (Destroy). X-67 Chaingunner destroyed. Switching to secondary target: Y-54 Guardian. Slug penetrates Y-54 Guardian. Quantum Reactor destroyed. U-05 Engineer builds a Wall. Slug penetrates H-61 Shepherd. H-61 Shepherd calls for reinforcements. ALERT: Hostile activity reported, dispatching reinforcements to area. K-01 Serf collects debris. Adv. KE Penetrator destroyed. U-05 Engineer destroyed. Slug penetrates H-61 Shepherd. K-01 Serf collects debris. [Achievement: 10k Club] Map ----- +----------------------------------------------------+ | ?????????????????????????????????????????????????? | | ?????????????????????????????????????????????????? | | ?????????????????????????????????????????????????? | | ?????????????????????????????????????????????????? | | ?????????????????????????????????????????????????? | | ?????????????????????????????????????????????????? | | ?????????????????????????????????????????????????? | | ?????????????????????????????????????????????????? | | ?????????????????????? ????????????????????????? | | ?????????????????????# ????????????????????????? | | ?????????????????????# #???????????????????????? | | ?????????????????????# #???????????????????????? | | ?????????????????????# +???????????????????????? | | ?????????????????????# w #???????????????????????? | | ?????????????????????# #???????????????????????? | | ?????????????????????# /???????????????????????? | | ?????????????????? ?# #???????????????????????? | | ?????????????????? ?# #???????????????????????? | | ?????????????????? ?# #???????????????????????? | | ?????????????????? ?#g% #???????????????????????? | | ??????#####?????##+#?#%= #########???????????????? | | ??????# ????# #?#!! # ???????????????? | | ??????# """???? #?#ggx; """" ???????????????? | | ??????# ""T"???# #?#%|%;!% """" ???????????????? | | ???????? ??# #?# !%= = """" #??????????????? | | ??????????"" [ ## ### @ """" #??????????????? | | ???????????? # ## ; % #??????????????? | | ?????????????? / ## ; #??????????????? | | ???????????????# ## Y; #??????????????? | | ???????????????# ## = # ! ] #???###????????? | | #########??????## ###H%=########## * #????????? | | #???????# ###%! #????????? | | #???????# ###= +????????? | | " #???????# ###%! #????????? | | """ ######### ###!*k########## ?????????? | | """"" + ^ !! #???????????????????????? | | """""" + ^ #???????????????????????? | | """"" ####+###+##### #???????????????????????? | | """ #??# ## #???????????????????????? | | " #??# #; #???????????????????????? | | #??# ## #???????????????????????? | | #??# """" ## #?##########????????????? | | #########??# """" ## #?# #????????????? | | ???????????# * """" ## #?# " " " #????????????? | | ???????????# """" ## #?# " " " #????????????? | | ???????????# ## #?# " " " #????????????? | | ???????????# ? ## #?# #????????????? | | ???????????#######???# #?# "" " " #????????????? | | ?????????????????????# #?# "T " " #????????????? | | ?????????????????????# #?# "" " " #????????????? | +----------------------------------------------------+ Best States ------------- Heat Dissipation 75 Energy Generation 25 Energy Capacity 350 Matter Stores 300 Matter Capacity 300 Sight Range 18 Terrain Scan Density 10 Armor Coverage 600 Resistance: TH 10 Evasion (%) 65 Targeting Accuracy 16 Core Analysis 6 Recoil Reduction 4 Matter Filtering 30 Offensive Hacking 24 Defensive Hacking 12 Item Schematics ----------------- None Robot Schematics ------------------ None Fabricated ------------ Nothing Repaired ---------- Imp. Ion Engine | 48% | -8/Materials | Broken Lgt. Nuclear Core | 54% | -8/Materials Studied --------- Imp. Light Cannon | -9/Materials | Hacked Imp. Aluminum Leg | -9/Materials | Hacked Gauss Rifle | -6/Factory | Hacked Alien Tech Used ----------------- None Achievements -------------- 10k Club Everything Is Under Control Ghost 'Em Leap Before You Look Librarian Oops Quick And Dirty Remodeling Respectable Loadout Challenges ------------ None Game ------ Seed HardlightVoltaicDetector Manual? 0 Play Time 01:20:06 Cumulative 5.4 hours Start 2026.02.11 @ 13:17:14 End 2026.02.11 @ 14:37:51 Sessions 1 Manual Loads 0 Difficulty Rogue Special Mode None Game No. 6 Rogue 6 Adventurer 0 Explorer 0 Win Type - Total 0 Types 0/0/0/0/0/0/0/0/0/0 Lore% 3 Gallery% 10 Achievement% 9 Wizard Run 0 Options --------- Layout 1 ASCII 0 Keyboard 0 Movement Numpad Keybinds 0 Fullscreen 1 Font 32/SmallcapsGlow Map View 50x35 Zoom Use 0% Tactical HUD 0 Map Filters NONE Filters NONE Steam 1 RUN: f438342d-35aa-4b2f-b007-7621d9d57fbf